bitfinex-derivatives/quotes_ETHF0:USTF0_20241231
["timestamp","ask_amount","ask_price","bid_price","bid_amount"]
[1735605090238,3.2078,3352.0,3351.5,0.29891]
[1735605090440,3.2078,3352.0,3351.3,3.2078]
[1735605090441,0.29889,3351.9,3351.3,3.2078]
[1735605090635,0.29889,3351.9,3351.5,0.29892]
[1735605090842,3.2078,3352.0,3351.5,0.29891]
[1735605091033,0.2989,3351.7,3351.5,0.29891]
[1735605091340,2.91274099,3351.8,3350.9,3.2078]
[1735605091731,0.29887,3351.8,3351.6,0.29889]
[1735605092138,3.2078,3352.0,3351.4,0.2989]
[1735605092139,0.29889,3351.6,3351.4,0.2989]
[1735605092538,0.29889,3351.6,3351.5,40.8]
[1735605092937,0.29888,3351.7,3351.6,0.29888]
[1735605093235,0.29888,3351.7,3351.5,40.8]
[1735605093236,4.8164,3352.1,3351.5,40.8]
[1735605093441,5.11525,3352.1,3352.0,0.29885]
[1735605093635,4.8164,3352.1,3352.0,0.29885]
[1735605093840,3.50662,3352.4,3352.0,0.29885]
[1735605094041,7.17920011,3352.6,3352.1,3.2078]
[1735605094242,2.447,3352.6,3352.5,3.2078]
[1735605094445,2.7458,3352.6,3352.5,3.2078]
[1735605095038,2.447,3352.6,3352.5,0.29881]
[1735605095346,0.29882,3352.4,3352.0,3.2078]
[1735605095643,0.29885,3352.1,3352.0,3.2078]
[1735605096147,2.3992,3352.3,3351.6,2.4768]
[1735605096334,0.29887,3351.9,3351.7,0.29888]
[1735605096540,0.29885,3352.1,3351.8,0.29887]
[1735605096740,3.2078,3352.2,3351.6,2.4768]
[1735605096939,3.2078,3352.2,3352.1,0.29885]
[1735605097140,3.50664,3352.2,3352.0,0.29885]
[1735605098142,0.29884,3352.2,3352.0,0.29885]
[1735605098841,2.3992,3352.3,3351.9,3.2078]
[1735605099035,0.29894,3351.0,3350.9,3.2078]
[1735605099241,2.91274099,3351.5,3350.8,0.29896]
[1735605099646,0.29895,3350.9,3350.8,0.29896]
[1735605100047,2.91274099,3351.5,3350.5,5.5067]
[1735605100344,0.29894,3351.0,3350.8,0.29896]
[1735605100643,0.29894,3351.0,3350.5,5.5067]
[1735605100948,2.91274099,3351.5,3350.5,5.5067]
[1735605101343,3.2078,3351.3,3350.5,5.5067]
[1735605101541,0.29897,3350.8,3350.6,0.29897]
[1735605102249,0.29897,3350.7,3350.5,2.2989]
[1735605102444,0.29897,3350.7,3350.2,2.3337]
[1735605102445,2.91274099,3351.1,3350.2,2.3337]
[1735605102647,0.299,3350.4,3350.2,2.63271]
[1735605103241,2.5438,3350.8,3350.2,2.3337]
[1735605103442,0.29901,3350.3,3350.2,2.3337]
[1735605103656,2.5438,3350.8,3350.2,2.3337]
[1735605103848,0.29899,3350.5,3350.2,2.63271]
[1735605104146,2.5438,3350.8,3350.2,2.3337]
[1735605104451,0.299,3350.4,3350.2,2.3337]
[1735605104639,0.29897,3350.7,3350.2,2.3337]
[1735605104947,2.5438,3350.8,3350.1,3.2078]
[1735605105250,0.29901,3350.2,3350.1,3.2078]
[1735605105550,0.29901,3350.3,3350.1,3.2078]
[1735605105753,0.29898,3350.6,3350.1,5.96192]
[1735605105946,0.29899,3350.5,3350.3,0.299]
[1735605107850,2.5438,3350.8,3350.1,5.6629]
[1735605108056,0.29899,3350.5,3350.3,0.299]
[1735605108552,0.29897,3350.7,3350.4,0.29899]
[1735605108942,2.91274099,3350.7,3350.1,5.6629]
[1735605109142,0.29902,3350.2,3350.1,3.2078]
[1735605112851,0.29904,3349.9,3349.8,2.5563]
[1735605113048,0.29907,3349.6,3349.5,3.2078]
[1735605113249,0.29907,3349.6,3349.5,5.7506]
[1735605113449,2.3549,3350.1,3349.5,5.7506]
[1735605113749,0.29906,3349.8,3349.6,0.29906]
[1735605113949,0.29906,3349.7,3349.6,0.29906]
[1735605114149,0.29906,3349.7,3349.5,5.7506]
[1735605114350,0.29906,3349.7,3349.5,6.04967]
[1735605114550,0.29906,3349.8,3349.6,0.29907]
[1735605114852,2.3549,3350.1,3349.5,6.04967]
[1735605115052,0.29907,3349.7,3349.5,5.7506]
[1735605115241,0.29907,3349.7,3349.6,0.29907]
[1735605115441,2.3549,3350.1,3349.5,5.7506]
[1735605115847,0.29904,3350.0,3349.8,0.29905]
[1735605116050,6.12054099,3350.3,3349.8,0.29905]
[1735605116247,0.29904,3349.9,3349.8,0.29905]
[1735605117659,0.29904,3350.0,3349.9,0.29904]
[1735605117846,3.2078,3350.3,3349.6,0.74768]
[1735605118051,0.29901,3350.3,3350.2,0.29902]
[1735605118351,4.877,3350.6,3349.9,3.2078]
[1735605118549,2.56272692,3350.3,3350.2,0.29902]
[1735605118950,0.29901,3350.3,3350.2,0.29902]
[1735605119652,7.14071692,3350.6,3349.9,3.2078]
[1735605120052,0.29902,3350.2,3350.1,0.29902]
[1735605121554,2.26371692,3350.3,3349.9,3.2078]
[1735605121750,3.2078,3350.7,3350.6,0.29898]
[1735605121951,7.06551692,3351.3,3350.5,0.74748]
[1735605122154,0.29893,3351.2,3351.1,0.29893]
[1735605122446,7.06551692,3351.3,3350.8,3.95521]
[1735605122447,2.26371692,3351.3,3350.8,3.95521]
[1735605122647,2.33300011,3351.5,3350.8,3.95521]
[1735605122857,0.29893,3351.2,3351.1,0.29893]
[1735605123058,2.26371692,3351.3,3350.8,3.2078]
[1735605123453,2.26371692,3351.3,3351.2,0.29893]
[1735605123849,2.56263692,3351.3,3351.2,0.29893]
[1735605124359,0.29893,3351.2,3351.1,0.29893]
[1735605124562,2.26371692,3351.6,3350.8,3.2078]
[1735605124858,0.29891,3351.4,3351.3,0.29891]
[1735605125062,0.29892,3351.3,3351.2,0.29892]
[1735605126761,2.26371692,3351.6,3350.8,3.2078]
[1735605126963,0.29895,3350.9,3350.8,3.2078]
[1735605127957,0.29895,3350.9,3350.8,3.50676]
[1735605128760,0.29895,3350.9,3350.8,3.2078]
[1735605131660,0.29901,3350.3,3350.2,3.50681]
[1735605132266,0.29901,3350.3,3350.2,3.2078]
[1735605133959,2.26371692,3350.6,3350.2,3.2078]
[1735605134159,7.07761703,3350.9,3350.2,3.2078]
[1735605134363,0.29898,3350.6,3350.2,3.2078]
[1735605134560,7.07761703,3350.9,3350.2,3.2078]
[1735605134755,0.299,3350.4,3350.2,3.2078]
[1735605134959,0.299,3350.4,3350.3,0.299]
[1735605137362,0.29901,3350.3,3350.2,3.2078]
[1735605138055,2.56272692,3350.3,3350.2,3.2078]
[1735605138258,2.4093,3350.5,3350.0,2.3445]
[1735605138862,0.29903,3350.2,3350.1,0.29902]
[1735605139164,2.4093,3350.5,3350.0,2.3445]
[1735605139564,0.29903,3350.1,3350.0,2.3445]
[1735605139955,0.29904,3349.9,3349.8,3.2078]
[1735605140358,0.29907,3349.6,3349.5,2.80998]
[1735605140569,2.26371692,3350.0,3349.4,3.2078]
[1735605140864,0.29908,3349.5,3349.4,3.50688]
[1735605141065,2.26371692,3350.0,3349.4,3.50688]
[1735605141258,0.29908,3349.6,3349.4,3.50688]
[1735605141458,0.29908,3349.6,3349.4,3.2078]
[1735605141660,2.4382,3349.9,3349.4,3.2078]
[1735605141862,0.29908,3349.5,3349.4,3.50688]
[1735605142265,0.29907,3349.6,3349.5,0.29908]
[1735605142862,2.33300011,3349.9,3349.4,3.2078]
[1735605143069,2.63205011,3349.9,3349.8,0.29905]
[1735605143263,2.33300011,3349.9,3349.8,3.50685]
[1735605143658,2.33300011,3349.9,3349.8,44.30685]
[1735605144270,2.33300011,3350.3,3349.8,53.8694]
[1735605144470,2.33300011,3350.3,3350.2,3.50682]
[1735605144872,3.5007589,3350.5,3350.4,0.299]
[1735605145071,1.9407589,3350.5,3350.4,2.56271692]
[1735605145271,1.9407589,3350.5,3350.4,3.77271692]
[1735605145674,4.66767853,3350.7,3350.6,0.29898]
[1735605145875,4.66767853,3350.7,3350.6,3.50678]
[1735605146277,0.29892,3351.3,3350.6,3.2078]
[1735605146482,0.29892,3351.3,3351.2,0.29893]
[1735605146769,2.4058,3351.6,3351.0,3.2078]
[1735605146974,0.2989,3351.5,3351.0,3.2078]
[1735605147270,0.2989,3351.5,3351.4,0.29891]
[1735605147471,2.91262485,3351.8,3351.4,3.50671]
[1735605147774,0.2989,3351.6,3351.4,3.50671]
[1735605148981,2.91262485,3351.8,3351.4,3.2078]
[1735605149181,0.2989,3351.5,3351.4,3.2078]
[1735605150081,0.2989,3351.5,3351.4,3.50671]
[1735605150387,0.2989,3351.5,3351.4,3.2078]
[1735605150777,0.2989,3351.5,3351.4,3.50671]
[1735605151484,2.91262485,3351.8,3351.4,3.2078]
[1735605151686,0.29884,3352.2,3351.9,0.29886]
[1735605151886,0.29884,3352.2,3352.0,0.29885]
[1735605152077,2.3942,3352.3,3351.8,3.2078]
[1735605152286,0.29886,3352.0,3351.8,3.50667]
[1735605153190,0.29885,3352.1,3351.9,0.29886]
[1735605154192,2.3942,3352.3,3351.8,3.2078]
[1735605154386,2.91262485,3352.2,3351.3,3.2078]
[1735605154589,2.91262485,3352.2,3351.4,0.29891]
[1735605154590,9.30433485,3352.2,3351.4,0.29891]
[1735605154787,0.29889,3351.6,3351.4,0.29891]
[1735605155486,0.29889,3351.6,3351.3,3.2078]
[1735605155686,0.29889,3351.6,3351.4,0.29891]
[1735605155894,0.29889,3351.6,3351.3,3.2078]
[1735605155895,0.29889,3351.6,3351.5,0.2989]
[1735605156096,9.30433485,3352.2,3351.5,0.2989]
[1735605156287,0.29889,3351.7,3351.5,0.2989]
[1735605156488,0.29889,3351.7,3351.3,3.2078]
[1735605156689,0.29889,3351.7,3351.6,0.29889]
[1735605156887,0.29889,3351.7,3351.5,0.29889]
[1735605157189,0.29889,3351.6,3351.4,0.2989]
[1735605157799,2.91262485,3351.8,3351.3,3.2078]
[1735605157989,2.91262485,3351.8,3351.4,0.2989]
[1735605158390,0.2989,3351.6,3351.4,0.2989]
[1735605159094,0.2989,3351.6,3351.3,3.2078]
[1735605159289,0.2989,3351.6,3351.4,0.29891]
[1735605159485,3.95501,3351.7,3350.6,7.03325086]
[1735605159692,0.29894,3351.0,3350.6,7.03325086]
[1735605159888,2.91262485,3351.4,3350.6,7.03325086]
[1735605160201,0.29896,3350.7,3350.6,7.03325086]
[1735605161199,0.29897,3350.6,3350.5,3.2078]
[1735605161602,2.91262485,3350.9,3350.5,3.2078]
[1735605161792,5.69953485,3351.3,3351.2,0.29892]
[1735605161990,5.69953485,3351.3,3351.1,0.29892]
[1735605161991,5.40062485,3351.3,3351.1,0.29892]
[1735605162389,5.69954485,3351.3,3351.0,0.29894]
[1735605162594,5.69954485,3351.3,3350.9,3.2078]
[1735605162595,5.40062485,3351.3,3350.9,3.2078]
[1735605162791,2.91262485,3351.3,3351.2,0.29892]
[1735605163296,7.87547853,3351.8,3351.0,40.8]
[1735605163297,2.91262485,3351.7,3351.0,40.8]
[1735605163602,3.21150485,3351.7,3351.6,0.29888]
[1735605163802,0.29888,3351.6,3351.5,0.29889]
[1735605164490,2.91262485,3351.7,3351.3,3.2078]
[1735605164901,0.2989,3351.4,3351.3,3.2078]
[1735605165094,2.91262485,3351.7,3351.3,3.2078]
[1735605165600,0.2989,3351.4,3351.3,3.2078]
[1735605166600,2.91262485,3351.7,3351.3,3.50671]
[1735605166798,0.2989,3351.5,3351.4,0.2989]
[1735605167200,2.91262485,3351.7,3351.3,3.2078]
[1735605167395,0.2989,3351.4,3351.3,3.5067]
[1735605167702,0.29889,3351.5,3351.4,0.2989]
[1735605167902,0.2989,3351.4,3351.3,3.2078]
[1735605168309,2.26199883,3351.5,3351.3,3.2078]
[1735605168602,0.2989,3351.4,3351.3,3.2078]
[1735605172203,0.29894,3351.0,3350.9,3.2078]
[1735605172405,2.56093883,3351.0,3350.9,3.2078]
[1735605173311,0.29896,3350.7,3350.6,0.29897]
[1735605173611,2.26199883,3351.0,3350.5,3.2078]
[1735605173803,0.29895,3350.9,3350.8,0.29895]
[1735605176503,0.29896,3350.8,3350.7,0.29896]
[1735605176703,2.26199883,3351.0,3350.5,3.2078]
[1735605176907,0.29895,3350.9,3350.8,0.29895]
[1735605177108,0.29894,3350.9,3350.8,0.29895]
[1735605177299,2.26199883,3351.0,3350.7,0.29896]
[1735605177300,0.29896,3350.8,3350.7,0.29896]
[1735605178207,2.26199883,3351.0,3350.5,3.2078]
[1735605178410,0.29897,3350.6,3350.5,3.2078]
[1735605179203,2.60617,3350.6,3350.5,3.2078]
[1735605180108,0.29897,3350.6,3350.5,3.2078]
[1735605180505,2.56096883,3350.6,3350.5,3.2078]
[1735605182112,0.29902,3350.1,3350.0,3.2078]
[1735605182907,0.29902,3350.1,3350.0,3.50682]
[1735605183207,0.29902,3350.1,3350.0,3.2078]
[1735605184412,0.29908,3349.4,3349.3,15.25785086]
[1735605184905,0.29908,3349.4,3349.3,56.05785086]
[1735605185311,0.29908,3349.4,3349.3,15.25785086]
[1735605185513,0.29908,3349.4,3349.3,10.24105086]
[1735605185713,0.29908,3349.4,3349.3,3.2078]
[1735605187314,0.29912,3348.9,3348.8,4.9405]
[1735605187514,2.56111883,3348.9,3348.8,4.9405]
[1735605187812,0.29915,3348.6,3348.3,10.24105086]
[1735605188013,0.29915,3348.6,3348.4,2.66386]
[1735605188217,0.29916,3348.5,3348.4,5.16047]
[1735605188415,2.506,3348.8,3348.4,5.16047]
[1735605188609,5.527,3349.3,3348.4,4.8613]
[1735605188610,2.26199883,3349.2,3348.4,4.8613]
[1735605188817,2.3192,3349.3,3348.9,3.2078]
[1735605189020,0.2991,3349.2,3348.9,3.2078]
[1735605189315,0.29911,3349.0,3348.8,0.29913]
[1735605189923,0.29911,3349.1,3349.0,0.29911]
[1735605190214,2.26199883,3349.2,3349.0,0.29911]
[1735605190418,2.26199883,3349.2,3348.9,3.2078]
[1735605190419,0.29911,3349.1,3348.9,3.2078]
[1735605190613,0.29911,3349.0,3348.9,3.2078]
[1735605190921,0.29916,3348.5,3348.4,4.8613]
[1735605191218,2.56114883,3348.6,3348.4,4.8613]
[1735605191717,0.29916,3348.5,3348.4,4.8613]
[1735605192915,0.29916,3348.5,3348.4,8.0691]
[1735605193318,2.26199883,3348.6,3348.4,8.0691]
[1735605193619,0.29916,3348.5,3348.4,8.0691]
[1735605193813,2.26199883,3348.6,3348.4,8.0691]
[1735605194015,4.70169883,3348.9,3348.4,8.0691]
[1735605194421,0.29914,3348.8,3348.5,0.29916]
[1735605194914,5.00081883,3348.9,3348.6,0.29914]
[1735605195117,5.00081883,3348.9,3348.4,8.0691]
[1735605195118,4.70169883,3348.9,3348.4,8.0691]
[1735605195317,0.29914,3348.8,3348.5,0.29916]
[1735605195818,5.00082883,3348.9,3348.6,0.29915]
[1735605196121,0.29915,3348.6,3348.4,8.0691]
[1735605196621,0.29913,3348.8,3348.4,8.0691]
[1735605196820,0.29916,3348.6,3348.4,8.0691]
[1735605197019,4.70169883,3348.9,3348.4,8.0691]
[1735605197223,0.29915,3348.6,3348.4,8.0691]
[1735605197523,4.70169883,3348.9,3348.4,8.0691]
[1735605197923,0.29916,3348.5,3348.4,8.0691]
[1735605198521,0.29916,3348.5,3348.4,48.8691]
[1735605198816,2.26199883,3348.6,3347.6,3.2078]
[1735605199014,2.56122883,3347.7,3347.6,3.2078]
[1735605199222,2.26199883,3347.7,3347.2,43.3342]
[1735605199427,0.29923,3347.8,3347.3,0.29926]
[1735605199723,0.29924,3347.7,3347.2,2.83347]
[1735605199925,0.29923,3347.7,3347.3,0.29926]
[1735605200221,0.29924,3347.7,3347.3,0.29926]
[1735605200715,2.26199883,3348.0,3347.2,43.3342]
[1735605200910,7.84599883,3348.3,3347.5,3.2078]
[1735605201116,4.66767853,3349.5,3347.2,48.3342]
[1735605201117,2.26199883,3348.6,3347.9,3.2078]
[1735605201322,0.29919,3348.1,3348.0,4.7033]
[1735605201823,0.29919,3348.1,3348.0,2.3526]
[1735605202323,0.29919,3348.1,3347.1,1.211]
[1735605202324,0.29925,3347.5,3347.4,3.2078]
[1735605205813,0.29925,3347.6,3347.4,3.2078]
[1735605206021,0.29921,3347.9,3347.4,3.2078]
[1735605206218,0.29925,3347.6,3347.4,3.50706]
[1735605206426,0.29925,3347.6,3347.5,40.8]
[1735605209315,0.29925,3347.5,3347.4,3.2078]
[1735605210421,7.19499883,3348.0,3347.4,3.2078]
[1735605210628,0.74796,3348.3,3347.7,0.29923]
[1735605210629,0.29922,3347.9,3347.7,0.29923]
[1735605210830,0.29923,3347.7,3347.6,0.29924]
[1735605211021,0.29923,3347.7,3347.4,3.2078]
[1735605211529,2.5597,3348.2,3347.4,3.2078]
[1735605211530,2.26199883,3348.0,3347.4,3.2078]
[1735605211731,2.26199883,3348.0,3347.2,5.663]
[1735605211732,0.29927,3347.3,3347.2,5.663]
[1735605212024,0.29927,3347.3,3347.2,3.2078]
[1735605212330,0.29927,3347.3,3345.8,7.472]
[1735605212331,5.0,3347.3,3345.8,4.65716275]
[1735605212629,2.26199883,3346.3,3346.0,0.29938]
[1735605212822,0.29937,3346.1,3345.9,2.61899]
[1735605213023,0.29938,3346.1,3345.9,2.61899]
[1735605213221,5.46979883,3346.0,3345.8,3.44074275]
[1735605213425,3.2078,3346.4,3345.8,1.29240911]
[1735605213827,3.2078,3346.4,3346.2,0.29936]
[1735605214033,3.2078,3346.4,3346.3,2.5357]
[1735605214331,3.2078,3346.9,3346.3,4.79769883]
[1735605214528,3.2078,3346.9,3346.8,0.29931]
[1735605215528,2.4079,3347.7,3347.1,0.29928]
[1735605215529,0.29926,3347.4,3347.1,0.29928]
[1735605215726,0.29926,3347.4,3347.2,4.7913]
[1735605215925,3.50704,3347.6,3347.3,0.29926]
[1735605216329,0.29924,3347.6,3347.3,0.29926]
[1735605216628,7.64862631,3348.1,3347.2,4.7913]
[1735605216821,0.29924,3347.6,3347.4,0.29925]
[1735605217021,0.29923,3347.7,3347.5,0.29925]
[1735605217224,0.29923,3347.7,3347.2,4.7913]
[1735605217225,2.3218,3348.1,3347.4,3.2078]
[1735605217524,3.2078,3348.2,3347.4,3.2078]
[1735605217732,0.74782,3348.9,3348.3,0.29917]
[1735605217733,5.7401,3348.6,3348.3,0.29917]
[1735605218027,0.29916,3348.5,3347.9,0.29921]
[1735605218223,5.7401,3348.6,3347.9,4.6911]
[1735605218425,2.5323,3348.6,3348.4,0.29917]
[1735605218628,2.5323,3348.6,3347.9,4.6911]
[1735605218823,0.29917,3348.5,3348.2,0.29918]
[1735605219032,2.91892631,3348.5,3347.9,4.6911]
[1735605219233,0.29919,3348.2,3347.9,4.99031]
[1735605220231,2.91892631,3348.5,3347.9,45.4911]
[1735605220435,0.29918,3348.3,3348.0,0.2992]
[1735605220733,0.29917,3348.4,3348.0,0.2992]
[1735605221629,0.29917,3348.4,3348.1,0.29919]
[1735605221826,3.2078,3348.6,3348.4,0.29916]
[1735605222025,0.29914,3348.7,3348.4,0.29916]
[1735605222931,2.5425,3348.8,3348.3,3.50697]
[1735605222932,0.29915,3348.6,3348.3,3.50697]
[1735605223127,0.29914,3348.7,3348.4,0.29916]
[1735605223436,3.50692,3349.0,3348.7,0.29914]
[1735605224128,3.2078,3349.0,3348.8,0.29912]
[1735605224324,3.2078,3349.0,3347.8,3.2078]
[1735605224325,2.91892631,3348.9,3347.8,3.2078]
[1735605224522,3.21810631,3348.3,3348.0,0.2992]
[1735605224923,0.29919,3348.2,3347.9,2.68171]
[1735605225133,2.91892631,3348.3,3347.9,2.3825]
[1735605225333,4.936,3348.5,3347.9,2.3825]
[1735605225730,0.29918,3348.3,3348.0,0.2992]
[1735605225928,0.29917,3348.4,3347.9,2.3825]
[1735605226235,2.86114616,3348.4,3347.9,2.3825]
[1735605226439,0.2992,3348.1,3347.9,2.3825]
[1735605227040,0.29918,3348.3,3348.0,0.2992]
[1735605227436,0.29919,3348.2,3347.9,2.68171]
[1735605228336,4.936,3348.5,3347.9,2.3825]
[1735605228532,0.29918,3348.3,3348.0,0.2992]
[1735605229037,0.29918,3348.3,3347.9,2.3825]
[1735605229339,0.29918,3348.3,3348.1,0.29919]
[1735605229734,5.23516,3348.5,3348.2,0.29918]
[1735605230037,0.29918,3348.3,3348.1,0.29919]
[1735605230640,4.936,3348.5,3347.9,2.3825]
[1735605230842,0.29917,3348.4,3348.2,0.29918]
[1735605231835,0.29918,3348.3,3348.2,0.29918]
[1735605232142,0.29918,3348.3,3348.1,0.29919]
[1735605232446,4.936,3348.5,3348.1,0.29919]
[1735605233242,0.29918,3348.3,3348.1,0.29919]
[1735605233638,0.29919,3348.2,3348.1,0.29919]
[1735605233843,0.29919,3348.2,3348.0,0.2992]
[1735605234139,0.2992,3348.0,3347.8,3.2078]
[1735605234443,2.86114616,3348.4,3347.9,0.29921]
[1735605234444,0.2992,3348.1,3347.9,0.29921]
[1735605235142,2.86114616,3348.4,3347.9,0.29921]
[1735605235341,2.86114616,3348.4,3347.8,3.50702]
[1735605235536,0.29921,3348.0,3347.8,3.50702]
[1735605236139,0.29921,3348.0,3347.8,3.2078]
[1735605236343,0.2992,3348.1,3347.9,0.29921]
[1735605237340,0.2992,3348.1,3348.0,0.2992]
[1735605237537,0.29919,3348.2,3347.8,3.2078]
[1735605237742,0.2992,3348.1,3348.0,0.2992]
[1735605237940,0.29919,3348.2,3348.1,0.29919]
[1735605238240,0.29918,3348.4,3347.8,3.2078]
[1735605238433,7.26026811,3348.5,3347.8,3.2078]
[1735605238638,0.29917,3348.4,3348.3,0.29917]
[1735605238838,7.26026811,3348.5,3347.8,3.2078]
[1735605239036,0.29917,3348.4,3347.8,3.2078]
[1735605239232,0.29918,3348.4,3347.9,0.29921]
[1735605239438,4.936,3348.5,3347.6,0.29923]
[1735605239439,0.29922,3347.9,3347.6,0.29923]
[1735605239639,2.32426811,3347.7,3347.5,0.30201915]
[1735605239839,2.62349811,3347.7,3347.5,0.00276915]
[1735605240445,2.32426811,3347.7,3347.5,0.00276915]
[1735605240642,0.29924,3347.6,3347.5,0.00276915]
[1735605242453,2.62349811,3347.7,3347.5,0.00276915]
[1735605242946,0.29924,3347.6,3347.5,0.00276915]
[1735605244149,3.50704,3347.6,3347.5,0.00276915]
[1735605246348,3.50704,3347.6,3346.4,3.2078]
[1735605246349,15.82963927,3347.6,3346.4,3.2078]
[1735605246550,0.29935,3346.4,3346.3,7.03325086]
[1735605247045,5.18955,3346.4,3346.3,7.03325086]
[1735605247555,5.18955,3346.4,3345.8,3.50719]
[1735605247556,0.29936,3346.2,3345.8,3.50719]
[1735605247850,4.8902,3346.4,3345.9,40.8]
[1735605248050,4.8902,3346.4,3346.2,0.29936]
[1735605248550,2.32426811,3346.5,3346.3,0.29935]
[1735605248851,2.32426811,3346.5,3346.4,2.3838]
[1735605250553,2.62360811,3346.5,3346.4,2.3838]
[1735605250946,2.32426811,3346.5,3346.4,2.3838]
[1735605252047,2.62360811,3346.5,3346.4,4.8384]
[1735605259276,2.62360811,3346.5,3346.0,3.2078]
[1735605259277,2.32426811,3346.5,3346.0,3.2078]
[1735605259477,2.32426811,3346.2,3345.7,4.7612]
[1735605259666,2.62366811,3345.8,3345.7,4.7612]
[1735605259866,2.32426811,3345.8,3345.7,4.7612]
[1735605260066,2.32426811,3346.1,3345.7,4.7612]
[1735605260273,0.2994,3345.8,3345.7,4.7612]
[1735605260675,2.32426811,3346.1,3345.7,4.7612]
[1735605260876,3.2078,3346.3,3346.0,0.29938]
[1735605260877,0.29936,3346.3,3346.0,0.29938]
[1735605261169,2.32426811,3346.1,3345.7,4.7612]
[1735605261375,2.32426811,3346.1,3346.0,0.29938]
[1735605262577,2.62364811,3346.1,3345.9,0.29939]
[1735605262874,2.62364811,3346.1,3345.7,4.7612]
[1735605263178,2.32426811,3346.1,3345.7,4.7612]
[1735605263366,2.32426811,3346.1,3346.0,0.29938]
[1735605265278,0.29939,3346.0,3345.9,0.29939]
[1735605265579,0.29939,3345.9,3345.8,0.2994]
[1735605266379,0.29939,3346.0,3345.9,0.29939]
[1735605269281,2.32746623,3346.1,3346.0,0.29938]
[1735605269777,2.62683623,3346.1,3346.0,0.29938]
[1735605270582,2.32746623,3346.1,3345.7,4.7612]
[1735605270779,0.29939,3346.0,3345.9,0.29938]
[1735605270983,2.62683623,3346.1,3346.0,0.29938]
[1735605271680,2.32746623,3346.1,3346.0,0.29938]
[1735605273184,2.62683623,3346.1,3346.0,0.29938]
[1735605273386,2.32746623,3346.1,3346.0,0.29938]
[1735605274786,2.32746623,3346.1,3345.9,0.29938]
[1735605274787,0.29939,3346.0,3345.9,0.29938]
[1735605275881,5.21764623,3346.1,3346.0,0.29938]
[1735605279185,5.21763735,3346.1,3346.0,0.29938]
[1735605284489,0.29937,3346.2,3346.1,0.29937]
[1735605284685,2.401,3346.5,3345.8,8.2078]
[1735605284994,2.60993535,3346.8,3346.7,0.29932]
[1735605285189,2.31061535,3346.8,3346.7,41.09932]
[1735605285894,8.1078,3347.0,3346.9,0.2993]
[1735605286088,5.6088,3347.0,3346.9,0.2993]
[1735605286281,5.90809,3347.0,3346.9,0.2993]
[1735605288591,2.31061535,3347.1,3346.8,3.2078]
[1735605288793,2.31061535,3347.1,3347.0,0.29929]
[1735605289394,2.31061535,3347.1,3346.9,0.2993]
[1735605289593,5.4447,3347.0,3346.9,0.2993]
[1735605289900,5.1454,3347.0,3346.9,0.2993]
[1735605290198,2.31061535,3347.5,3346.8,3.2078]
[1735605290396,2.5435,3347.4,3347.3,0.29927]
[1735605291500,2.5435,3347.4,3347.2,3.50707]
[1735605291501,0.29927,3347.3,3347.2,3.50707]
[1735605292090,0.29927,3347.3,3347.2,3.2078]
[1735605292493,0.29927,3347.3,3347.2,3.50708]
[1735605292694,2.84276,3347.4,3347.2,3.50708]
[1735605293001,0.29927,3347.3,3347.2,3.50708]
[1735605293696,2.84276,3347.4,3347.3,0.29927]
[1735605293992,2.5435,3347.4,3347.2,3.2078]
[1735605294200,0.29927,3347.3,3347.2,3.50707]
[1735605295298,0.29927,3347.3,3347.2,3.2078]
[1735605295500,4.87095735,3347.4,3346.8,3.50711]
[1735605296000,4.87095735,3347.4,3346.7,7.03325086]
[1735605296001,0.29931,3346.8,3346.7,7.03325086]
[1735605296898,2.4467,3347.3,3346.7,7.03325086]
[1735605297100,0.29931,3346.9,3346.5,2.32745735]
[1735605297302,0.2993,3347.0,3346.9,0.2993]
[1735605297601,4.75731535,3347.3,3346.7,0.29931]
[1735605297996,0.29931,3346.8,3346.7,0.29931]
[1735605299502,0.29931,3346.9,3346.5,0.29934]
[1735605299703,0.29931,3346.9,3346.8,0.29931]
[1735605299898,0.29931,3346.9,3346.4,3.2078]
[1735605300093,0.29931,3346.9,3346.7,0.29931]
[1735605300298,0.29931,3346.8,3346.7,0.29931]
[1735605300700,2.31061535,3347.3,3347.2,0.29928]
[1735605301400,2.31061535,3347.3,3347.2,41.09928]
[1735605301603,0.75061535,3347.3,3347.2,46.09928]
[1735605301902,3.45687227,3347.5,3347.4,0.29926]
[1735605302104,2.3232543,3347.9,3347.8,0.29922]
[1735605302605,2.3232543,3347.9,3347.8,2.62667735]
[1735605302812,2.3232543,3347.9,3347.8,5.83447735]
[1735605303798,2.3232543,3347.9,3347.8,3.2078]
[1735605304001,0.29921,3347.9,3347.8,3.2078]
[1735605304204,0.29924,3347.6,3347.5,7.03325086]
[1735605305306,0.29924,3347.6,3347.1,16.57491392]
[1735605305307,3.2078,3347.6,3347.1,4.8588]
[1735605305501,0.29928,3347.2,3347.1,4.8588]
[1735605306104,2.3607,3347.5,3346.9,7.03325086]
[1735605306307,0.29929,3347.0,3346.9,7.03325086]
[1735605306607,0.2993,3346.9,3346.8,3.2078]
[1735605306902,2.66,3346.9,3346.8,3.50711]
[1735605307301,2.66,3346.9,3346.8,3.2078]
[1735605312011,2.66,3346.9,3346.8,3.50711]
[1735605313714,2.3607,3346.9,3346.8,3.50711]
[1735605314211,2.3607,3346.9,3346.8,3.2078]
[1735605314425,2.66,3346.9,3346.8,3.2078]
[1735605314923,0.29934,3346.5,3346.4,0.29934]
[1735605315123,0.29935,3346.4,3346.3,3.50715]
[1735605315423,0.29935,3346.4,3346.3,3.2078]
[1735605317625,0.29935,3346.4,3346.3,3.50716]